Cogmind - Beta 16 @@@ ROGUE MODE // 2025.12.01 @ 23:57:45 Player: opdo Result: Self-destructed Performance ------------- Evolutions (4) 2000 Regions Visited (8) 1600 Robots Destroyed (82) 410 Value Destroyed (2747) 2747 Prototype IDs (11) 220 Alien Tech Used (0) 0 Bonus (702) 702 TOTAL SCORE: 7679 Bonus ------- High Alert Combat Kills 13 Follower Combat Kills 718 Friendly Fire -29 Cogmind --------- Core Integrity 562/850 Matter 183/300 Energy 248/283 System Corruption 0% Temperature Critical (523) Movement Treading (320) Ox2 Location -6/Extension Parts ------- > --- POWER (1) -------- Multi-Deuterium Engine > --- PROPULSION (6) --- Light Treads Light Treads Flexi-carbon Leg FC Exoskeleton > --- UTILITY (6) ------ Armored Scrap Engine Huge Storage Unit Improved Hacking Suite > --- WEAPON (2) ------- Phase Cannon > --- INVENTORY (25) --- Deuterium Engine Deuterium Engine High-capacity Matter Pod (200) Machine Analyzer Improved System Shield Heavy Particle Gun Heavy Particle Gun Enhanced Autogun Enhanced Autogun Enhanced Autogun Hypervelocity Gauss Rifle Great Maul Peak State ------------ > --- POWER ------------ Light Angular Momentum Engine > --- PROPULSION ------- Light Treads Light Treads Advanced Treads Advanced Treads Advanced Treads Medium Treads > --- UTILITY ---------- Armored Scrap Engine Huge Storage Unit Heavy Armor Plating Improved Hacking Suite > --- WEAPON ----------- Advanced Beam Cannon Gatling Kinetic Ion Construct/C > --- INVENTORY -------- Deuterium Engine Deuterium Engine Deuterium Engine Light Treads Light Treads Light Treads Light Treads Light Treads High-capacity Matter Pod Machine Analyzer Phase Shifter Reflective Plating Hardlight Generator Improved System Shield Drone Bay Heavy Particle Gun Heavy Particle Gun Phase Cannon Phase Cannon Enhanced Autogun Enhanced Autogun Enhanced Autogun Hypervelocity Gauss Rifle Improved Grenade Launcher Great Maul [Rating: 68] Favorites ----------- Power Deuterium Engine Engine Deuterium Engine Power Core Light Nuclear Core Propulsion Advanced Treads Treads Advanced Treads Leg Aluminum Leg Utility Huge Storage Unit Device Improved Sensor Array Storage Huge Storage Unit Processor Improved Signal Interpreter Hackware Improved Hacking Suite Protection Hardened Medium Armor Plating Weapon Advanced Beam Cannon Energy Gun Small Laser Energy Cannon Advanced Beam Cannon Ballistic Gun Assault Rifle Launcher Improved Grenade Launcher Impact Weapon Great Maul Piercing Weapon Makeshift Spear Build | -11 -10 -10 -10 -8 -8 -8 -6 -6 ------- Run | Yrd Mat Min Sub Mat Sto Rec Fac Ext Slots Evolved 8 | . . . . 4 . . 4 . Power . | . . . . . . . . . Propulsion 4 | . . . . 2 . . 2 . Utility 4 | . . . . 2 . . 2 . Weapon . | . . . . . . . . . Parts Attached 79 | 6 8 . 8 13 25 1 10 8 Power 8 | 1 . . 1 3 1 . 1 1 Engine 6 | 1 . . 1 1 1 . 1 1 Core 2 | . . . . 2 . . . . Reactor . | . . . . . . . . . Propulsion 25 | 2 . . 1 5 10 . 3 4 Treads 19 | 2 . . 1 1 9 . 3 3 Leg 6 | . . . . 4 1 . . 1 Wheel . | . . . . . . . . . Hover . | . . . . . . . . . Flight . | . . . . . . . . . Utility 23 | 1 3 . 1 5 6 1 4 2 Device 8 | . 1 . . 2 1 1 2 1 Storage 4 | 1 1 . . 1 1 . . . Processor 1 | . . . . 1 . . . . Hackware 1 | . . . . . . . 1 . Protection 9 | . 1 . 1 1 4 . 1 1 Artifact . | . . . . . . . . . Weapon 23 | 2 5 . 5 . 8 . 2 1 Energy Gun 4 | . . . 1 . 3 . . . Energy Cannon 3 | . . . . . 1 . 2 . Ballistic Gun 11 | 2 5 . 1 . 2 . . 1 Ballistic Cannon . | . . . . . . . . . Launcher 2 | . . . 1 . 1 . . . Special Weapon . | . . . . . . . . . Impact Weapon 2 | . . . 1 . 1 . . . Slashing Weapon . | . . . . . . . . . Piercing Weapon 1 | . . . 1 . . . . . Special Melee Weapon . | . . . . . . . . . Unidentified Prototypes 5 | . . . . . 4 1 . . Parts Lost 34 | . . . 4 7 3 . . 20 Power 5 | . . . 1 1 1 . . 2 Propulsion 14 | . . . 1 3 1 . . 9 Utility 8 | . . . 1 2 . . . 5 Weapon 7 | . . . 1 1 1 . . 4 Highest Loss Streak 15 | . . . 3 3 2 . . 15 To Critical Strikes . | . . . . . . . . . Average Backups 18 | 1 11 15 14 12 15 23 24 22 Power 2 | . 1 2 1 1 1 2 3 2 Propulsion 4 | 1 2 3 2 1 3 6 5 4 Utility 4 | . 3 4 3 2 3 4 6 6 Weapon 7 | . 4 6 7 7 5 9 9 9 Tool/Special . | . . . . . . . . . Unused Backups 34 | . 1 2 2 1 10 4 7 7 Power 4 | . . . . 1 1 . . 2 Propulsion 5 | . . . 1 . 1 2 1 . Utility 8 | . . 2 . . 1 . 2 3 Weapon 17 | . 1 . 1 . 7 2 4 2 Tool/Special . | . . . . . . . . . Average Slot Usage (%) 94 | . 96 100 98 93 99 97 85 83 Engine 8 | . 14 14 13 5 7 9 6 5 Treads 31 | . 28 28 27 19 25 36 39 35 Leg 2 | . . . . 15 10 . . 1 Device 7 | . 3 . 1 10 9 9 10 8 Storage 9 | . 14 14 14 9 9 9 6 6 Processor 3 | . . . . . 9 6 . . Protection 8 | . 6 14 12 13 9 9 6 4 Energy Gun 1 | . . . 11 6 1 . . . Energy Cannon 5 | . . . . . 4 9 7 11 Ballistic Gun 7 | . 28 28 10 7 4 . 1 . Impact Weapon 3 | . . . . . 2 9 3 . Piercing Weapon 1 | . . . 3 2 3 . . . Peak Build Rating 68 | 6 8 8 15 26 35 47 68 68 Average Rating 33 | 5 7 8 10 21 30 38 63 64 On Entrance 23 | . 6 8 8 15 26 35 47 68 Avg Prop Armor Cover (%) 6 | . . . . 4 7 . . 7 Naked Turns . | . . . . . . . . . Heaviest Build 123 | 14 34 32 33 35 106 106 123 117 Greatest Support 134 | 40 40 40 40 60 86 86 134 134 Greatest Overweight (x) 4 | 4 . . 1 . 1 1 . 1 Average Overweight (x) . | . . . . . . 1 . . Largest Inventory Capacity 25 | 8 15 15 15 15 25 25 25 25 Average Capacity 19 | 7 14 15 15 15 15 25 25 25 Most Carried 25 | 4 15 15 15 15 23 25 25 25 Average Carried 18 | 1 11 14 14 12 15 24 24 22 Final Capacity 25 | 8 15 15 15 15 25 25 25 25 Final Carried 25 | 4 15 15 14 15 23 25 25 12 Scrap Engine Consumption 31 | . . . . . . . 21 10 Constructs Created 4 | . . . . . . . 1 3 Constructs Modified 2 | . . . . . . . 1 1 Class Distribution -------------------- 75% | Mutant 12% | Commander-Mutant 9% | Scavenger-Mutant Dominant Class ---------------- Mutant | -10/Materials Mutant | -10/Mines Mutant | -10/Subcaves Scavenger-Mutant | -8/Materials Mutant | -8/Storage Mutant | -8/Recycling Commander-Mutant | -6/Factory Mutant | -6/Extension Resources | -11 -10 -10 -10 -8 -8 -8 -6 -6 ----------- Run | Yrd Mat Min Sub Mat Sto Rec Fac Ext Matter Collected 1877 | 131 525 47 202 264 478 10 139 81 Remotely . | . . . . . . . . . Salvage Created 3415 | 30 464 . 118 628 951 216 497 511 Parts 175 | 2 40 . 8 40 49 . 14 22 Haulers Intercepted 3 | . 1 . . . 2 . . . Recyclers Shooed 1 | . . . . 1 . . . . Parts Field Recycled . | . . . . . . . . . Retrieved Matter . | . . . . . . . . . Parts Self-Destructed 2 | . . . 2 . . . . . Prevented . | . . . . . . . . . Parts Restored . | . . . . . . . . . Kills | -11 -10 -10 -10 -8 -8 -8 -6 -6 ------- Run | Yrd Mat Min Sub Mat Sto Rec Fac Ext Combat Hostiles Destroyed 65 | . 16 . 5 15 12 1 8 8 Melee 10 | . . . . 5 5 . . . Guns 32 | . 16 . 2 10 3 . . 1 Cannons 12 | . . . . . 1 . 6 5 AOE 9 | . . . 3 . 2 . 2 2 Classes Destroyed 16 | 1 4 . 1 2 6 . 1 1 Worker 1 | . . . . . 1 . . . Builder 1 | . . . . 1 . . . . Tunneler 1 | 1 . . . . . . . . Hauler 3 | . 1 . . . 2 . . . Recycler 6 | . . . . . 3 3 . . Mechanic 2 | . . . . . 1 . 1 . Operator 1 | . . . . . 1 . . . Watcher 2 | . 1 . . . . . 1 . Swarmer 13 | . 9 . . 4 . . . . Grunt 27 | . 7 . . 10 3 . 6 1 Brawler 1 | . . . . . 1 . . . Duelist 1 | . . . . . . . . 1 Sentry 14 | . . . . 1 7 . 1 5 Hunter 1 | . . . . . 1 . . . Programmer 1 | . . . . . . . 1 . Subdweller 6 | . . . 5 . . 1 . . Thug 1 | . . . . . . . . 1 Best Kill Streak 5 | 1 4 . 2 5 5 2 4 2 Combat Bots Only 4 | . 4 . 2 4 3 1 4 2 Max Kills in Single Turn 2 | 1 2 . 2 2 2 1 2 2 Gunslinging 1 | . 1 . . 1 . . . . Exploded 2 | . . . 2 . 1 . 1 2 Melee 1 | . . . . 1 1 . . . Uniques/NPCs Destroyed . | . . . . . . . . . Combat | -11 -10 -10 -10 -8 -8 -8 -6 -6 -------- Run | Yrd Mat Min Sub Mat Sto Rec Fac Ext Hostile Shots Fired 581 | . 69 . 25 94 65 . 61 267 Missed 183 | . 21 . 10 28 26 . 20 78 Hits 398 | . 48 . 15 66 39 . 41 189 Melee 7 | . . . . . . . . 7 Projectile 391 | . 48 . 15 66 39 . 41 182 AOE 4 | . . . 2 . . . . 2 Critical Strikes 10 | . . . . 1 3 . 1 5 Damage Taken 6126 | . 443 . 396 946 621 . 573 3147 Core 700 | . 54 . 118 151 89 . 24 264 Absorbed by Shields 412 | . . . . . . . 75 337 Redirected to Shielding 33 | . . . . 33 . . . . Ignored by Resistances 64 | . . . . . . . . 64 Regen/Repaired (Parts) 80 | . . . . . . . 62 18 Core Remaining (%) 62 | 100 . . 31 . . 56 . . Volleys Fired 192 | 5 51 . 16 24 31 . 27 38 Largest 2 | 2 2 . 2 2 2 . 2 2 Hottest 170 | 40 40 . 70 68 123 . 153 170 Shots Fired 362 | 10 102 . 30 47 50 . 48 75 Gun 223 | 10 102 . 21 47 30 . 5 8 Cannon 122 | . . . . . 16 . 40 66 Launcher 17 | . . . 9 . 4 . 3 1 Special . | . . . . . . . . . Kinetic 204 | 10 102 . 13 23 25 . . 31 Thermal 139 | . . . 8 24 21 . 44 42 Explosive 17 | . . . 9 . 4 . 3 1 Electromagnetic 2 | . . . . . . . 1 1 Robot Hit Streak 16 | 5 6 . 10 9 7 . 16 16 Robot Miss Streak 5 | 1 5 . 2 4 2 . 4 2 Penetration Max 1 | . . . . . 1 . . . Secondary Targets 7 | . 4 . . 3 . . . . Max Gunslinging Chain 1 | . 1 . . 1 . . . . Shots Hit Robots 274 | 7 51 . 17 48 50 4 37 60 Core Hits 159 | 2 27 . 13 29 27 . 28 33 Critical Kills 3 | . . . . . 2 . . 1 Critical Parts Destroyed 2 | . . . . . . 1 . 1 Critical Strikes 11 | . . . . 4 2 1 . 4 Meltdown 2 | . . . . . 2 . . . Destroy 4 | . . . . . . . . 4 Smash 1 | . . . . . . 1 . . Impale 4 | . . . . 4 . . . . Melee Attacks 86 | . . . 5 27 44 10 . . Impact 25 | . . . 2 . 13 10 . . Slashing . | . . . . . . . . . Piercing 61 | . . . 3 27 31 . . . Sneak Attacks 11 | . . . . 1 6 4 . . Combat Hostiles 1 | . . . . . . 1 . . Follow-up Attacks . | . . . . . . . . . Damage Inflicted 7478 | 97 620 . 666 1004 1849 358 1376 1508 Guns 1806 | 97 609 . 189 486 334 . 40 51 Cannons 2013 | . . . . . 228 . 770 1015 Explosions 1903 | . . . 477 . 523 . 464 439 Melee 1621 | . . . . 513 760 348 . . Ramming 135 | . 11 . . 5 4 10 102 3 Kinetic 1602 | 97 609 . 135 290 277 . . 194 Thermal 2604 | . . . 54 196 285 . 912 1157 Explosive 1492 | . . . 477 . 523 . 350 142 Electromagnetic 24 | . . . . . . . 12 12 Impact 660 | . . . . . 312 348 . . Slashing . | . . . . . . . . . Piercing 961 | . . . . 513 448 . . . Highest Corruption . | . . . . . . . . . Average Corruption . | . . . . . . . . . Corruption Purged . | . . . . . . . . . Corruption Blocked . | . . . . . . . . . Overload Shots . | . . . . . . . . . Overflow Damage 322 | . . . . 25 41 228 14 14 Projectiles 20 | . . . . . . . 6 14 Explosions 8 | . . . . . . . 8 . Melee 294 | . . . . 25 41 228 . . Knockbacks 12 | . . . . . . . 2 10 Impact 2 | . . . . . . . 2 . Kinetic 10 | . . . . . . . . 10 Secondary . | . . . . . . . . . Self-Inflicted Damage 107 | . . . . . . . 49 58 Shots 2 | . . . . . . . 1 1 Rammed 14 | . 2 . . 1 . 1 8 2 Targets Rammed 15 | . 2 . . 1 1 1 8 2 Kicked 1 | . . . . . 1 . . . Crushed . | . . . . . . . . . Highest Temperature 496 | . 18 . . 130 149 . 339 496 Average Temperature 81 | . 7 . . 51 50 . 116 93 Received Heat Transfer 1670 | . 108 . 45 468 198 . 152 699 Effects 3 | . . . . . . . 2 1 Shutdowns 1 | . . . . . . . . 1 Energy Bleed 1 | . . . . . . . 1 . Interference 1 | . . . . . . . 1 . Siege Activations . | . . . . . . . . . Martial Activations . | . . . . . . . . . Shielding Activations . | . . . . . . . . . Robots Disrupted 1 | . . . . . . . . 1 Combat Hostiles 1 | . . . . . . . . 1 Robots Corrupted 2 | . . . . . . 2 . . Combat Hostiles 1 | . . . . . . 1 . . Parts Fried 8 | . . . . . . 8 . . Impact Corruptions 6 | . . . . . . 6 . . Robots Melted 2 | . . . . . 2 . . . Combat Hostiles 1 | . . . . . 1 . . . Parts Melted 12 | . . . . . 5 . 5 2 Heat Transferred 3886 | . . . 125 450 518 . 1297 1496 Parts Sabotaged . | . . . . . . . . . Parts Stolen . | . . . . . . . . . Parts Stripped . | . . . . . . . . . Power Chain Reactions 3 | . . . . . . . 1 2 Alert | -11 -10 -10 -10 -8 -8 -8 -6 -6 ------- Run | Yrd Mat Min Sub Mat Sto Rec Fac Ext Maximum Alert Level 2 | . . . . 1 1 . 1 2 Low Security (%) 82 | 100 100 100 . 95 80 100 50 45 Level 1 16 | . . . . 4 19 . 49 35 Level 2 1 | . . . . . . . . 19 Level 3 . | . . . . . . . . . Level 4 . | . . . . . . . . . Level 5 . | . . . . . . . . . High Security . | . . . . . . . . . Max Security . | . . . . . . . . . Peak Influence 490 | 5 183 36 . 204 241 74 322 490 Initial 250 | . . 36 . . 85 45 250 121 Average 100 | . 77 10 . 86 153 10 169 235 Influence Increases 3298 | 5 468 . . 449 503 162 817 894 Destroy 0b10 Robot/C 1540 | . 320 . . 300 240 . 220 460 Destroy 0b10 Robot/NC 85 | 5 10 . . 5 40 15 10 . Destroy Leader 320 | . 64 . . 50 94 . 62 50 Allied During Kill 293 | . . . . . . . 29 264 Successful Hack 134 | . 44 . . 4 27 22 12 25 Select Force Hacks 120 | . . . . . . 120 . . Disable Machine 120 | . 15 . . . 75 . 15 15 Anti-Garrison Action 200 | . . . . . . . 200 . Destroy Structure 71 | . . . . . 27 5 19 20 Advance Influence 250 | . . . . . . . 250 . Lose Combat Pursuer 165 | . 15 . . 90 . . . 60 Influence Decreases 2915 | 5 374 94 . 247 587 280 568 760 Entered New Map 376 | . . 58 . . 117 73 . 128 Time Decay 1909 | 5 374 36 . 177 440 207 448 222 Lost Part 300 | . . . . 70 30 . . 200 Lost Ally 330 | . . . . . . . 120 210 Squads Dispatched 19 | . 3 . . 3 1 . 6 6 Investigation 5 | . 2 . . . . . 1 2 Extermination 1 | . . . . . . . 1 . Reinforcement 8 | . 1 . . 2 1 . 2 2 Assault 2 | . . . . . . . . 2 Garrison 3 | . . . . 1 . . 2 . Intercept . | . . . . . . . . . Searches Triggered . | . . . . . . . . . Construction Impeded 2 | . . . . . . . 1 1 Haulers Reinforced . | . . . . . . . . . Active Scanning Responses . | . . . . . . . . . Cargo Convoy Interrupts . | . . . . . . . . . Stealth | -11 -10 -10 -10 -8 -8 -8 -6 -6 --------- Run | Yrd Mat Min Sub Mat Sto Rec Fac Ext Distress Signals 14 | . 4 . . 3 1 4 . 2 Communications Jammed . | . . . . . . . . . Distress Signals . | . . . . . . . . . Times Spotted 130 | . 21 . 6 28 25 1 13 36 Peak Tracking Total 11 | . 5 . 2 8 4 1 4 11 Tactical Retreats 6 | . 1 . . 4 . . . 1 Traps | -11 -10 -10 -10 -8 -8 -8 -6 -6 ------- Run | Yrd Mat Min Sub Mat Sto Rec Fac Ext Traps Triggered 2 | . 2 . . . . . . . Indirectly . | . . . . . . . . . Trap Hack Attempts . | . . . . . . . . . Triggered . | . . . . . . . . . Disarmed . | . . . . . . . . . Reprogrammed . | . . . . . . . . . Reused . | . . . . . . . . . Traps Extracted . | . . . . . . . . . Installed . | . . . . . . . . . Triggered . | . . . . . . . . . Machines | -11 -10 -10 -10 -8 -8 -8 -6 -6 ---------- Run | Yrd Mat Min Sub Mat Sto Rec Fac Ext Machines Disabled 8 | . 1 . . . 5 . 1 1 Max in Single Turn 1 | . 1 . . . 1 . 1 . Garrison Access 1 | . . . . . . . 1 . Machines Repaired . | . . . . . . . . . Machines Dismantled . | . . . . . . . . . Machines Sabotaged . | . . . . . . . . . Overloaded Fab Kills . | . . . . . . . . . Hacking | -11 -10 -10 -10 -8 -8 -8 -6 -6 --------- Run | Yrd Mat Min Sub Mat Sto Rec Fac Ext Machines Accessed 44 | . 7 . . 2 10 13 6 6 Terminals 33 | . 7 . . 2 9 6 3 6 Fabricators . | . . . . . . . . . Repair Stations . | . . . . . . . . . Recycling Units 6 | . . . . . 1 5 . . Scanalyzers 1 | . . . . . . . 1 . Garrison Access 2 | . . . . . . . 2 . Total Hacks 143 | . 25 . . 5 27 59 12 15 Successful 91 | . 16 . . 4 16 44 4 7 Failed 52 | . 9 . . 1 11 15 8 8 Catastrophic 6 | . 1 . . . 1 2 2 . Database Lockouts . | . . . . . . . . . Manual 67 | . 18 . . 5 16 21 5 2 Terminals 95 | . 25 . . 5 24 21 5 15 Fabricators . | . . . . . . . . . Repair Stations . | . . . . . . . . . Recycling Units 20 | . . . . . 3 17 . . Scanalyzers 2 | . . . . . . . 2 . Garrison Access 5 | . . . . . . . 5 . Terminal Hacks 44 | . 8 . . . 6 24 1 5 Record 19 | . . . . . . 19 . . Part Schematic 1 | . . . . . . 1 . . Robot Analysis 2 | . 2 . . . . . . . Prototype ID Bank 1 | . . . . . 1 . . . Open Door 8 | . . . . . 2 . 1 5 Branch Access Points 2 | . 1 . . . 1 . . . Terminal Index 3 | . 1 . . . 1 1 . . Recycling Unit Index 1 | . . . . . . 1 . . Alert Level 1 | . 1 . . . . . . . Locate Traps 1 | . 1 . . . . . . . Hauler Manifests 2 | . 1 . . . 1 . . . Registered Components 1 | . 1 . . . . . . . Release Object 2 | . . . . . . 2 . . Fabricator Hacks . | . . . . . . . . . Repair Station Hacks . | . . . . . . . . . Recycling Unit Hacks 11 | . . . . . 1 10 . . Process 1 | . . . . . . 1 . . Report Inventory 6 | . . . . . 1 5 . . Retrieve Matter 1 | . . . . . . 1 . . Retrieve Components 3 | . . . . . . 3 . . Scanalyzer 1 | . . . . . . . 1 . Retrieve Study 1 | . . . . . . . 1 . Garrison Access Hacks . | . . . . . . . . . Unauthorized Hacks 35 | . 8 . . 4 9 10 2 2 Terminals 30 | . 8 . . 4 9 6 1 2 Botnet 10 | . 2 . . 2 3 1 1 1 Operators 1 | . 1 . . . . . . . Skim 19 | . 5 . . 2 6 5 . 1 Fabricators . | . . . . . . . . . Repair Stations . | . . . . . . . . . Recycling Units 4 | . . . . . . 4 . . Tunnel 4 | . . . . . . 4 . . Scanalyzers . | . . . . . . . . . Garrison Access 1 | . . . . . . . 1 . Jam 1 | . . . . . . . 1 . Data Cores Recovered 1 | . . . . . 1 . . . Used . | . . . . . . . . . Hacking Detections 34 | . 6 . . 2 8 7 6 5 Full Trace Events 3 | . . . . . . 1 . 2 Feedback Events . | . . . . . . . . . Feedback Blocked . | . . . . . . . . . Robot Schematics Acquired . | . . . . . . . . . Robots Built . | . . . . . . . . . Authchips . | . . . . . . . . . Time . | . . . . . . . . . Total Robot Build Rating . | . . . . . . . . . Part Schematics Acquired 1 | . . . . . . 1 . . Parts Built . | . . . . . . . . . Authchips . | . . . . . . . . . Time . | . . . . . . . . . Total Part Build Rating . | . . . . . . . . . Part Studies Acquired 1 | . . . . . . . 1 . Parts Repaired . | . . . . . . . . . Time . | . . . . . . . . . Parts Recycled . | . . . . . . . . . Recycled Matter . | . . . . . . . . . Retrieved Matter . | . . . . . . . . . Retrieved Components 12 | . . . . . . 12 . . Parts Scanalyzed . | . . . . . . . . . Part Schematics Acquired . | . . . . . . . . . Parts Damaged . | . . . . . . . . . Bothacking | -11 -10 -10 -10 -8 -8 -8 -6 -6 ------------ Run | Yrd Mat Min Sub Mat Sto Rec Fac Ext Used RIF Installer . | . . . . . . . . . Robots Hacked . | . . . . . . . . . Non-combat . | . . . . . . . . . Combat . | . . . . . . . . . Robot Hacks Applied . | . . . . . . . . . Relay Couplers Released . | . . . . . . . . . Fabnet Peak Effective % . | . . . . . . . . . Robots Rewired 11 | . . . . . . 8 . 3 Allies Hacked . | . . . . . . . . . Hacks Repelled . | . . . . . . . . . Allies | -11 -10 -10 -10 -8 -8 -8 -6 -6 -------- Run | Yrd Mat Min Sub Mat Sto Rec Fac Ext Total Allies 18 | . . . . . . 8 . 10 Largest Group 9 | . . . . . . 8 8 9 Highest-Rated Group 383 | . . . . . . 125 125 383 Highest-Rated Ally 159 | . . . . . . 27 27 159 Total Orders 1 | . . . . . . . . 1 ROAM 1 | . . . . . . . . 1 Ally Attacks 163 | . . . . . . . 41 122 Total Damage 3313 | . . . . . . . 662 2651 Kills 18 | . . . . . . . 3 15 Allies Corrupted . | . . . . . . . . . Allies Melted . | . . . . . . . . . Intel | -11 -10 -10 -10 -8 -8 -8 -6 -6 ------- Run | Yrd Mat Min Sub Mat Sto Rec Fac Ext Active Infowar (turns) 2487 | . 259 . 55 . 1069 1104 . . Sensors 2173 | . . . . . 1069 1104 . . Structural 314 | . 259 . 55 . . . . . Robot Analysis Total 2 | . 2 . . . . . . . Derelict Logs Recovered . | . . . . . . . . . Drone Launches 3 | . . . . . . . . 3 Drone Recoveries 1 | . . . . . . . . 1 Exploration | -11 -10 -10 -10 -8 -8 -8 -6 -6 ------------- Run | Yrd Mat Min Sub Mat Sto Rec Fac Ext Turns Passed 6699 | 113 992 163 594 518 1085 1593 1178 463 Spaces Moved 3168 | 54 443 85 316 216 544 632 678 200 Core 11 | 11 . . . . . . . . Treads 2921 | 43 443 85 316 154 370 632 678 200 Legs 236 | . . . . 62 174 . . . Wheels . | . . . . . . . . . Hover . | . . . . . . . . . Flight . | . . . . . . . . . Fastest Speed 50 | 50 160 160 160 122 122 228 152 148 Average Speed 168 | 159 160 160 162 149 146 228 152 154 Slowest Speed 250 | 250 160 160 240 160 228 228 152 240 Overloaded Moves . | . . . . . . . . . Propulsion Burnouts . | . . . . . . . . . Robots Hopped . | . . . . . . . . . Potential Cave-ins . | . . . . . . . . . Cave-ins Triggered . | . . . . . . . . . Exploration Rate (%) 38 | 4 70 16 20 12 76 85 16 44 Regions Visited 8 Branch Regions 5 Pre-discovered Areas 11 | . 3 . . . 1 7 . . Known Exits Taken 6 | . 1 1 . 1 1 1 1 . Unknown Exits Taken 2 | 1 . . 1 . . . . . Scrap Searched 4 | . . 1 3 . . . . . Spaces Dug 11 | . . . . . 6 5 . . Terrain Destroyed 119 | . . . 39 . 32 5 30 13 Melee 11 | . . . . . 6 5 . . Projectile 5 | . . . . . . . 2 3 AOE 103 | . . . 39 . 26 . 28 10 Terrain Rammed . | . . . . . . . . . Walls Destroyed . | . . . . . . . . . Machines Disabled . | . . . . . . . . . Actions | -11 -10 -10 -10 -8 -8 -8 -6 -6 --------- Run | Yrd Mat Min Sub Mat Sto Rec Fac Ext Total 4069 | 68 634 116 360 332 736 769 777 277 Wait 301 | . 112 24 . 37 32 55 30 11 Move 3160 | 53 442 84 315 215 543 631 677 200 Hop . | . . . . . . . . . Pick Up 79 | 4 12 4 6 9 25 7 12 . Fast Attach 16 | 6 1 . . 5 1 1 . 2 Attach 31 | . 1 . 4 7 2 . 4 13 Detach 2 | . 1 . . . . . 1 . Swap 58 | . 6 . 10 4 30 . 7 1 Drop 63 | . 6 4 4 3 27 7 11 1 Fire 192 | 5 51 . 16 24 31 . 27 38 Melee 86 | . . . 5 27 44 10 . . Ram . | . . . . . . . . . Kick 1 | . . . . . 1 . . . Crush 14 | . 2 . . 1 . 1 8 2 Escape Stasis . | . . . . . . . . . Rewire 66 | . . . . . . 57 . 9 Trap . | . . . . . . . . . Miscellaneous . | . . . . . . . . . Route ------- -11/Scrapyard -10/Materials (discovered 6 exits: *Mat x3 / *Min x2 / Sub) -10/Mines (discovered 3 exits: Mat x2 / *Sub) -10/Subcaves -8/Materials -8/Storage (discovered 2 exits: *Fac / *Rec) -8/Recycling -6/Factory (discovered 4 exits: [*Fac x2] / *Ext x2) -6/Extension History --------- Turn | Location | Event 12 | -11/Scrapyard | Discovered new exit (range 16) 114 | -11/Scrapyard | Entered Materials 229 | -10/Materials | Discovered new exit (range 15) 300 | -10/Materials | Build established: Mutant 571 | -10/Materials | Discovered new exit (range 16) 693 | -10/Materials | Identified exit to Mines 718 | -10/Materials | Discovered new exit (range 14) 773 | -10/Materials | Learned Recycling recycling unit intel 844 | -10/Materials | Learned location of Subcaves (-10) 903 | -10/Materials | Identified exit to Materials 953 | -10/Materials | Learned location of Storage (-8) 1020 | -10/Materials | Identified exit to Subcaves 1059 | -10/Materials | Learned location of Recycling (-8) 1106 | -10/Materials | Entered Mines 1158 | -10/Mines | Assembled infested the area 1251 | -10/Mines | Discovered exit to Subcaves (range 5) 1269 | -10/Mines | Entered Subcaves 1334 | -10/Subcaves | Ambushed by Subdwellers from Twisted Machinery 1338 | -10/Subcaves | Core integrity fell below 50% 1368 | -10/Subcaves | Lost 3 parts (1p1n1u) 1708 | -10/Subcaves | Discovered new exit (range 11) 1863 | -10/Subcaves | Entered Materials 1863 | -8/Materials | Evolved 4 slots: Propulsion x2, Utility x2 2195 | -8/Materials | Garrison activated, responded to threat 2251 | -8/Materials | Lost 3 parts (2n1w) 2327 | -8/Materials | Discovered new exit (range 12) 2371 | -8/Materials | Identified exit to Storage 2381 | -8/Materials | Entered Storage 2836 | -8/Storage | Met 01-MTF 3004 | -8/Storage | Identified exit to Recycling 3031 | -8/Storage | Discovered new exit (range 3) 3072 | -8/Storage | Identified exit to Factory 3135 | -8/Storage | Learned Recycling recycling unit intel 3136 | -8/Storage | Learned Factory security intel 3137 | -8/Storage | Learned Factory emergency access door positions 3138 | -8/Storage | Learned Recycling recycling unit intel 3166 | -8/Storage | Learned location of 1 exit from Lower Caves 3466 | -8/Storage | Entered Recycling 3466 | -8/Recycling | Accompanied by 1 ally (01-MTF) 3467 | -8/Recycling | Loaded intel: 6 recycling unit locations 4138 | -8/Recycling | Discovered new exit (range 5) 4145 | -8/Recycling | Identified exit to Factory 4330 | -8/Recycling | Learned Storage emergency access door positions 4391 | -8/Recycling | Learned 2 Storage zone layouts 4443 | -8/Recycling | Learned location of Zion (-7) 4551 | -8/Recycling | Entered Scraplab 4566 | -8/Recycling | Learned Factory fabricator intel 4571 | -8/Recycling | Found Prototype Device 4571 | -8/Recycling | Identified Scrap Engine 5059 | -8/Recycling | Entered Factory 5059 | -6/Factory | Accompanied by 8 allies 5059 | -6/Factory | Evolved 4 slots: Propulsion x2, Utility x2 5060 | -6/Factory | Identified exit to Extension 5063 | -6/Factory | Loaded intel: 6 fabricator locations 5159 | -6/Factory | Discovered new exit (range 6) 5168 | -6/Factory | Build established: Commander-Mutant 5654 | -6/Factory | Garrison activated, responded to threat 5769 | -6/Factory | Lost 6 allies 5849 | -6/Factory | Discovered new exit (range 6) 6010 | -6/Factory | Build established: Mutant 6237 | -6/Factory | Entered Extension 6343 | -6/Extension | Rescued A7 6395 | -6/Extension | Rescued a captive Derelict 6500 | -6/Extension | Rescued a captive Derelict 6500 | -6/Extension | Rescued a captive Derelict 6525 | -6/Extension | Rescued a captive Derelict 6526 | -6/Extension | Rescued a captive Derelict 6587 | -6/Extension | First assault squad dispatched 6589 | -6/Extension | Rescued a captive Derelict 6603 | -6/Extension | Spotted B-75 Beast 6615 | -6/Extension | Spotted B-75 Beast 6655 | -6/Extension | Allies destroyed B-75 Beast 6665 | -6/Extension | Allies destroyed B-75 Beast 6674 | -6/Extension | Lost 3 allies 6689 | -6/Extension | Lost 15 parts (2p8n2u3w) 6700 | -6/Extension | Self-destructed Last Messages --------------- 06693_ U-05 Engineer lays Concrete. 06693_ Drone Bay destroyed. 06694_ >> Lost connection to Drone. 06694_ U-05 Engineer lays Concrete. 06695_ YT-QXJ(b) destroyed. 06695_ U-05 Engineer lays Concrete. 06696_ Critical hit (Burn: +37). 06697_ G-67 Veteran suffers critical hit (Burn). 06697_ Reflective Plating destroyed. 06697_ U-05 Engineer lays Concrete. 06697_ Destroyed Carbon-fiber Leg. 06697_ Axe melted. 06697_ L-41 Fighter destroyed. 06698_ Power failure, Multi-Deuterium Engine shutdown. 06698_ U-05 Engineer lays Concrete. 06700_ Lgt. Treads destroyed. 06700_ U-05 Engineer lays Concrete. 06700_ Phase Cannon destroyed. 06700_ Critical hit (Burn: +37). Map ----- +----------------------------------------------------+ | ???# ^^###### % #???????????????????????? | | ???#######^ #????# #???????????????????????? | | ????# #??# #????#%% ####????????????????????? | | ????###??######????# ""#????????????????????? | | ???????????????##### % T"#????????????????????? | | ???????????????# """#????????????????????? | | ???????????????###T# ####????????????????????? | | ?????????????????### #???????????????????????? | | ???????????????????##### #???????????????????????? | | ???????????????????????# #???????????????????????? | | ???????????????????????# #???????????????????????? | | ???????????????????????# #???????????????????????? | | ???????????????????????# #???????????????????????? | | ???????????????????????#%#???????????????????????? | | ???????????????????????# #???????????????????????? | | ???????????????????????#u#???????????????????????? | | ???????????????????????#%#???????????????????????? | | ???????????????????????#!#?######???#????????????? | | ?????????????????????###!##! # ### ##???????????? | | ????????????????????##"%%" [! "" ""#??????????? | | ????????????????????#%** [%e = " " #??????????? | | ????????????????????#% u=%%[ u #??????????? | | ???????????????????# #% *=[= %! #??????????? | | ???????############### %$ = =%! #??????????? | | % l %=gui ?????? | | @%% =%*g[g %" ?????? | | * =% [g ??????? | | =%! * g g ??????? | | R%! t *% t k%"???????? | | ?##################### ! ####???????? | | ?????????????????????# ;#?????????? | | ?????????????????????# ##?????????? | | ?????????????????????# #??????????? | | ?????????????????????# #??????????? | | ?????????????????????#####;T#"""##;####??????????? | | ??????????????????????????###?????? ?????????????? | | ????????????????????????????????????#????????????? | | | | | | | | | | | | | | | | | | | | | | | | | | | +----------------------------------------------------+ Best States ------------- Heat Dissipation 45 Coolant Potential 50 Energy Generation 18 Energy Capacity 283 Matter Stores 300 Matter Capacity 300 Sight Range 16 Robot Scan Range 15 Terrain Scan Density 10 Armor Coverage 600 Resistance: TH 10 Propulsion Shielding 33 Phase Shifting 5 Evasion (%) 55 Recoil Reduction 6 Offensive Hacking 12 Item Schematics ----------------- Huge Storage Unit | -8/Recycling | Hacked Robot Schematics ------------------ None Fabricated ------------ Nothing Repaired ---------- Nothing Studied --------- Adv. Treads | -6/Factory | Hacked Alien Tech Used ----------------- None Achievements -------------- None Challenges ------------ None Game ------ Seed ServoIonMediator Manual? 0 Play Time 00:44:01 Cumulative 134.5 hours Start 2025.12.01 @ 23:08:55 End 2025.12.01 @ 23:57:45 Sessions 1 Manual Loads 0 Difficulty Rogue Special Mode None Game No. 335 Rogue 333 Adventurer 2 Explorer 0 Win Type - Total 1 Types 1/0/0/0/0/0/0/0/0/0 Lore% 80 Gallery% 63 Achievement% 42 Wizard Run 0 Options --------- Layout 2 ASCII 0 Keyboard 0 Movement Numpad Keybinds 0 Fullscreen 2 Font 24/Smallcaps Map View 50x44 Zoom Use 0% Tactical HUD 1 Map Filters NONE Filters NONE Steam 1 RUN: ba84344e-d0c9-462a-b625-c98bf5478b32